bitfinex/quotes_BTCUSD_20240902
["timestamp","ask_amount","ask_price","bid_price","bid_amount"]
[1725287525573,1.363044,58692.0,58691.0,0.0004]
[1725287525871,1.533424,58692.0,58691.0,0.0004]
[1725287526350,0.511141,58692.0,58691.0,0.0004]
[1725287526583,0.17038,58692.0,58691.0,0.0004]
[1725287526820,0.511141,58692.0,58691.0,0.0004]
[1725287527037,0.04982781,58703.0,58695.0,0.5]
[1725287527303,0.340704,58702.0,58695.0,0.5]
[1725287527534,0.170356,58701.0,58695.0,0.67037]
[1725287527783,0.63511548,58716.0,58700.0,0.170356]
[1725287527784,0.29449248,58716.0,58700.0,0.170356]
[1725287528011,0.29449248,58716.0,58696.0,0.00340711]
[1725287528012,0.04999461,58707.0,58699.0,0.34072]
[1725287528233,0.04999461,58707.0,58703.0,0.1561]
[1725287528466,0.44499248,58728.0,58703.0,0.1561]
[1725287528467,0.29449248,58721.0,58703.0,0.1561]
[1725287528691,0.340612,58718.0,58703.0,0.15950678]
[1725287528943,0.21993265,58715.0,58703.0,0.15950678]
[1725287529155,0.29449248,58727.0,58703.0,0.85950678]
[1725287529372,0.1505,58728.0,58708.0,0.5]
[1725287529629,0.1505,58728.0,58709.0,0.00340624]
[1725287529630,0.21942931,58715.0,58709.0,0.00340624]
[1725287529856,0.1505,58728.0,58709.0,0.00340624]
[1725287530078,0.170307,58718.0,58713.0,0.170318]
[1725287530345,0.170307,58718.0,58710.0,0.340655]
[1725287530346,0.04975753,58728.0,58719.0,0.340603]
[1725287530607,0.350471,58743.0,58717.0,0.156]
[1725287530608,0.340448,58746.0,58728.0,0.2948]
[1725287530825,0.01,58767.0,58745.0,0.340449]
[1725287531068,0.01,58767.0,58746.0,0.132]
[1725287531069,0.50540786,58766.0,58746.0,0.132]
[1725287531306,0.30449248,58762.0,58746.0,0.01265781]
[1725287531570,0.30449248,58762.0,58739.0,0.132]
[1725287531571,0.170218,58748.0,58747.0,0.01265781]
[1725287531798,0.170222,58747.0,58740.0,0.02024715]
[1725287532052,0.340433,58749.0,58739.0,0.132]
[1725287532053,0.340433,58749.0,58741.0,0.01265783]
[1725287532260,0.170228,58745.0,58742.0,0.01265783]
[1725287532471,0.17022,58748.0,58739.0,0.18150675]
[1725287532682,0.17022,58748.0,58740.0,0.7126573]
[1725287532891,0.340413,58753.0,58740.0,0.0126573]
[1725287532892,0.170215,58750.0,58740.0,0.0126573]
[1725287533114,0.340415,58752.0,58741.0,0.0126573]
[1725287533357,0.29449248,58756.0,58742.0,0.0126573]
[1725287533576,0.29449248,58756.0,58739.0,0.18150675]
[1725287533577,0.170222,58747.0,58739.0,0.18150675]
[1725287533835,0.34042,58751.0,58739.0,0.18150675]
[1725287533836,0.170225,58746.0,58740.0,0.0126578]
[1725287534093,0.170225,58746.0,58739.0,0.18150675]
[1725287534094,0.170225,58746.0,58741.0,0.0126578]
[1725287534324,0.170225,58746.0,58739.0,0.18150675]
[1725287534325,0.34042,58751.0,58739.0,0.18150675]
[1725287534566,0.340386,58757.0,58740.0,0.0126578]
[1725287534795,0.30449248,58762.0,58742.0,0.170234]
[1725287534796,0.170202,58754.0,58742.0,0.170234]
[1725287535016,0.01,58766.0,58742.0,0.170234]
[1725287535017,0.170187,58759.0,58744.0,0.5]
[1725287535259,0.170194,58757.0,58745.0,0.0126578]
[1725287535499,0.170188,58759.0,58748.0,0.170218]
[1725287535980,0.340367,58761.0,58744.0,0.5]
[1725287536198,0.1578,58771.0,58747.0,0.04915344]
[1725287536199,0.29449248,58762.0,58747.0,0.04915344]
[1725287536697,0.29449248,58749.0,58739.0,0.132]
[1725287536934,0.170219,58748.0,58739.0,0.132]
[1725287537184,0.170213,58750.0,58739.0,0.18189237]
[1725287537429,0.170217,58749.0,58739.0,0.35213537]
[1725287537664,0.340415,58752.0,58739.0,0.18189237]
[1725287537918,0.170221,58747.0,58739.0,0.18189237]
[1725287538167,0.340415,58752.0,58739.0,0.18189237]
[1725287538168,0.165,58752.0,58739.0,0.04989237]
[1725287538410,0.340447,58747.0,58739.0,0.04989237]
[1725287538643,0.29449248,58761.0,58748.0,0.5]
[1725287538884,0.3018,58772.0,58748.0,0.5]
[1725287538885,0.29449248,58769.0,58748.0,0.5]
[1725287539118,0.170191,58758.0,58751.0,0.170207]
[1725287539373,0.340376,58759.0,58748.0,0.5497201]
[1725287539624,0.01,58767.0,58748.0,0.0497201]
[1725287539868,0.01,58771.0,58748.0,0.0497201]
[1725287539869,0.851077,58749.0,58748.0,0.0497201]
[1725287540087,0.510646,58749.0,58748.0,0.0497201]
[1725287540331,0.170222,58747.0,58739.0,0.170243]
[1725287540569,0.340431,58749.0,58741.0,0.7]
[1725287540808,0.29449248,58757.0,58741.0,0.7]
[1725287541059,0.340429,58750.0,58741.0,0.7]
[1725287541294,0.29449248,58757.0,58741.0,0.7]
[1725287541295,0.340401,58755.0,58741.0,0.7]
[1725287541530,0.340456,58745.0,58741.0,0.7]
[1725287541783,0.510706,58742.0,58741.0,0.7]
[1725287542022,0.170235,58742.0,58741.0,0.7]
[1725287542260,0.851177,58742.0,58741.0,0.7]
[1725287542483,0.510706,58742.0,58741.0,0.7]
[1725287543210,0.29449248,58763.0,58741.0,0.7]
[1725287543459,0.340319,58769.0,58745.0,0.170225]
[1725287543460,0.340392,58756.0,58745.0,0.170225]
[1725287543689,0.64481148,58769.0,58746.0,0.00340411]
[1725287543917,0.170207,58752.0,58746.0,0.17362611]
[1725287544163,0.3018,58772.0,58750.0,0.1375]
[1725287544396,0.340372,58760.0,58752.0,0.170204]
[1725287544631,0.340358,58762.0,58755.0,0.170196]
[1725287544913,0.340358,58762.0,58749.0,0.5]
[1725287544914,0.02667809,58773.0,58764.0,0.170171]
[1725287545175,0.170161,58768.0,58761.0,0.340357]
[1725287545411,0.02667809,58773.0,58763.0,0.170173]
[1725287545412,0.170158,58769.0,58763.0,0.170173]
[1725287545881,0.170169,58765.0,58759.0,0.068224]
[1725287546108,0.170169,58765.0,58759.0,0.238409]
[1725287546109,0.170171,58765.0,58759.0,0.238409]
[1725287546333,0.170166,58767.0,58759.0,0.068224]
[1725287546565,0.02667809,58773.0,58764.0,0.170171]
[1725287546822,0.02667809,58773.0,58763.0,0.5]
[1725287546823,0.02667809,58773.0,58761.0,0.7]
[1725287547041,0.85089,58762.0,58761.0,0.7]
[1725287547253,1.191246,58762.0,58761.0,0.7]
[1725287548206,0.510534,58762.0,58761.0,0.7]
[1725287548430,0.02667809,58773.0,58761.0,0.79463158]
[1725287548688,0.340299,58772.0,58763.0,0.34035]
[1725287548921,0.170156,58770.0,58766.0,0.170165]
[1725287549180,0.340277,58776.0,58768.0,0.17016]
[1725287549412,0.02667501,58785.0,58767.0,0.5]
[1725287549413,0.340265,58778.0,58769.0,0.17355879]
[1725287549646,0.170151,58771.0,58770.0,0.1624]
[1725287549879,0.170147,58773.0,58770.0,0.1624]
[1725287550070,0.170151,58771.0,58770.0,0.1624]
[1725287550304,0.510454,58771.0,58770.0,0.1624]
[1725287550537,0.170151,58771.0,58770.0,0.1624]
[1725287550769,0.510454,58771.0,58770.0,0.1624]
[1725287551014,0.29449248,58783.0,58763.0,0.161]
[1725287551292,0.170172,58764.0,58763.0,0.161]
[1725287551520,0.340344,58764.0,58759.0,0.04918501]
[1725287551731,0.340255,58780.0,58761.0,0.870179]
[1725287551973,0.170165,58767.0,58763.0,0.170174]
[1725287552220,0.29449248,58788.0,58765.0,0.5]
[1725287552459,0.29449248,58788.0,58766.0,0.00340282]
[1725287552717,0.2346,58794.0,58766.0,0.00340282]
[1725287552718,0.01833798,58832.0,58822.0,0.5]
[1725287553013,0.12664132,58859.0,58798.0,0.05]
[1725287553014,0.0004,58859.0,58833.0,0.161]
[1725287553249,0.0004,58859.0,58856.0,1.88083]
[1725287553499,0.0004,58859.0,58856.0,3.39032139]
[1725287553792,0.0004,58859.0,58856.0,4.28178216]
[1725287553793,0.0036881,58857.0,58856.0,4.28178216]
[1725287554047,0.00072837,58857.0,58856.0,4.11332139]
[1725287554308,0.00072837,58857.0,58856.0,4.28178216]
[1725287554775,0.007865,58865.0,58863.0,0.01]
[1725287554998,0.007865,58865.0,58863.0,0.71]
[1725287555506,0.007865,58865.0,58863.0,0.7]
[1725287555729,0.509769,58864.0,58863.0,0.7]
[1725287555966,1.14402748,58864.0,58863.0,0.7]
[1725287556453,0.509769,58864.0,58863.0,0.7]
[1725287556918,1.14402748,58864.0,58863.0,0.7]
[1725287557166,0.339787,58861.0,58855.0,0.01]
[1725287557387,0.170004,58864.0,58858.0,0.01]
[1725287557838,0.169897,58859.0,58858.0,0.01]
[1725287557841,0.169897,58859.0,58855.0,0.01]
[1725287558059,0.169897,58859.0,58852.0,0.049646]
[1725287558060,0.169914,58853.0,58852.0,0.049646]
[1725287558297,0.01012,58864.0,58853.0,0.01]
[1725287558298,0.29461248,58864.0,58853.0,0.01]
[1725287558521,0.29461248,58864.0,58852.0,0.749646]
[1725287558522,0.169906,58856.0,58855.0,0.01]
[1725287558992,0.169914,58853.0,58852.0,0.7]
[1725287559208,0.509743,58853.0,58852.0,0.7]
[1725287559701,0.00012,58864.0,58854.0,0.01]
[1725287559945,0.339772,58863.0,58860.0,0.01]
[1725287560159,0.169891,58861.0,58860.0,0.01]
[1725287560398,0.509674,58861.0,58855.0,0.8652]
[1725287560624,0.84953,58856.0,58855.0,0.7]
[1725287561306,0.509718,58856.0,58855.0,0.7]
[1725287561545,0.00012,58864.0,58855.0,0.71]
[1725287561793,0.169906,58856.0,58855.0,0.7]
[1725287562061,0.169893,58861.0,58859.0,0.01]
[1725287562304,0.00012,58864.0,58860.0,0.01]
[1725287562554,0.00012,58864.0,58863.0,0.01]
[1725287562775,0.00012,58864.0,58863.0,0.179886]
[1725287563022,0.00012,58864.0,58863.0,0.18328331]
[1725287563238,0.00012,58864.0,58863.0,0.88328331]
[1725287563461,0.00012,58864.0,58863.0,1.46348284]
[1725287563707,0.00012,58864.0,58863.0,1.41545531]
[1725287564435,0.00012,58864.0,58863.0,0.8524]
[1725287564437,0.00012,58864.0,58863.0,0.7]
[1725287564438,0.170003,58864.0,58863.0,0.7]
[1725287564967,0.509769,58864.0,58863.0,0.7]
[1725287565231,0.00012,58864.0,58863.0,1.36721283]
[1725287565466,0.00012,58864.0,58863.0,0.71]
[1725287565708,0.00012,58864.0,58863.0,1.39021283]
[1725287565937,0.007865,58865.0,58863.0,1.39021283]
[1725287565938,0.007865,58865.0,58863.0,1.19732683]
[1725287566159,0.007865,58865.0,58864.0,0.51304585]
[1725287566395,0.007865,58865.0,58864.0,1.65036668]
[1725287566607,0.007865,58865.0,58864.0,1.219649]
[1725287566830,0.007865,58865.0,58864.0,0.71]
[1725287567349,0.007865,58865.0,58864.0,0.879883]
[1725287567577,0.007865,58865.0,58864.0,1.65697716]
[1725287568323,0.331324,58882.0,58877.0,0.01]
[1725287568567,0.331324,58882.0,58863.0,0.30235748]
[1725287568568,0.509746,58899.0,58896.0,0.01]
[1725287568819,0.509746,58899.0,58891.0,0.01]
[1725287568820,0.0004,58899.0,58891.0,0.01]
[1725287569055,0.0004,58899.0,58893.0,0.01]
[1725287569311,0.0004,58899.0,58887.0,0.73921035]
[1725287569312,0.339585,58896.0,58890.0,0.01]
[1725287569561,0.169798,58894.0,58893.0,0.01]
[1725287569809,0.0004,58899.0,58887.0,0.04957735]
[1725287569810,0.0004,58899.0,58888.0,0.7]
[1725287570043,0.0004,58899.0,58890.0,0.01]
[1725287570044,0.339598,58893.0,58890.0,0.01]
[1725287570286,0.339598,58893.0,58888.0,0.7]
[1725287570287,0.169802,58892.0,58891.0,0.01]
[1725287570526,0.169813,58888.0,58887.0,0.05957735]
[1725287570764,0.169813,58888.0,58887.0,0.7]
[1725287570988,0.849067,58888.0,58887.0,0.7]
[1725287571471,1.188694,58888.0,58887.0,0.7]
[1725287571972,1.701021,58888.0,58887.0,0.7]
[1725287572475,2.44255462,58888.0,58887.0,0.7]
[1725287572713,2.44255462,58888.0,58876.0,0.04966495]
[1725287572714,1.528609,58877.0,58876.0,0.04966495]
[1725287572949,1.528609,58877.0,58849.0,0.5]
[1725287572950,0.509649,58864.0,58857.0,0.01]
[1725287573187,0.509665,58862.0,58861.0,0.55537493]
[1725287573434,0.1641,58884.0,58858.0,0.01]
[1725287573666,0.1641,58884.0,58849.0,0.5]
[1725287573667,0.339755,58866.0,58859.0,0.01]
[1725287573905,0.34586628,58883.0,58859.0,0.01]
[1725287574143,0.169877,58866.0,58865.0,0.01]
[1725287574381,0.169894,58860.0,58859.0,0.01]
[1725287574607,0.169894,58860.0,58857.0,0.068117]
[1725287574608,0.169888,58862.0,58861.0,0.01]
[1725287574835,0.509665,58862.0,58861.0,0.01]
[1725287575297,0.169884,58864.0,58861.0,0.01]
[1725287575527,0.1699,58858.0,58857.0,0.078117]
[1725287575775,0.1699,58858.0,58857.0,0.068117]
[1725287576016,0.169911,58854.0,58853.0,0.01]
[1725287576277,0.1733,58861.0,58852.0,0.068124]
[1725287576502,0.509778,58849.0,58848.0,0.01]
[1725287576729,0.339799,58859.0,58848.0,0.01]
[1725287576953,0.509778,58849.0,58848.0,0.01]
[1725287577403,0.84963,58849.0,58848.0,0.01]
[1725287577645,0.339824,58854.0,58848.0,0.01]
[1725287577862,0.1733,58861.0,58848.0,0.01]
[1725287577863,0.339806,58858.0,58848.0,0.01]
[1725287578098,0.1669,58870.0,58859.0,0.01]
[1725287578365,0.169894,58860.0,58859.0,0.01]
[1725287578608,0.339776,58863.0,58851.0,0.839838]
[1725287578609,0.169878,58866.0,58860.0,0.179891]
[1725287578857,0.169886,58863.0,58860.0,0.01]
[1725287579099,0.1358,58872.0,58860.0,0.01]
[1725287579100,0.33977,58864.0,58860.0,0.01]
[1725287579359,0.136,58881.0,58863.0,0.01]
[1725287579848,0.136,58881.0,58860.0,0.1654]
[1725287579849,0.339777,58862.0,58861.0,0.01]
[1725287580090,0.169914,58853.0,58852.0,0.51540786]
[1725287580326,0.339788,58861.0,58853.0,0.01]
[1725287580561,0.339733,58870.0,58865.0,0.01]
[1725287580795,0.1699,58858.0,58857.0,0.01]
[1725287581035,0.29449248,58880.0,58850.0,0.6654]
[1725287581036,0.16992,58851.0,58850.0,0.01]
[1725287581265,0.16992,58851.0,58844.0,0.5]
[1725287581266,0.29449248,58868.0,58848.0,0.01]
[1725287581497,0.29449248,58862.0,58847.0,0.01]
[1725287581747,0.01,58872.0,58844.0,0.5]
[1725287581748,0.29449248,58857.0,58844.0,0.068131]
[1725287581989,0.849687,58845.0,58844.0,0.068131]
[1725287582232,0.161,58850.0,58833.0,0.01]
[1725287582463,0.161,58850.0,58833.0,0.078143]
[1725287582719,0.161,58850.0,58837.0,0.01]
[1725287582952,0.169963,58836.0,58834.0,0.01]
[1725287583180,0.169963,58836.0,58829.0,0.50540786]
[1725287583181,0.339945,58833.0,58829.0,0.51540786]
[1725287583545,0.339945,58833.0,58826.0,0.01]
[1725287583546,0.339952,58832.0,58826.0,0.01]
[1725287583751,0.31059248,58849.0,58844.0,0.01]
[1725287583752,0.169937,58845.0,58844.0,0.01]
[1725287584005,0.169937,58845.0,58839.0,0.35]
[1725287584006,0.169945,58843.0,58839.0,0.01]
[1725287584261,0.29449248,58851.0,58832.0,0.01]
[1725287584497,0.02664185,58850.0,58847.0,0.01]
[1725287584762,0.02664185,58850.0,58849.0,1.80497048]
[1725287584982,0.339715,58873.0,58855.0,0.5]
[1725287585221,0.0266333,58878.0,58863.0,0.01]
[1725287585696,0.0266333,58878.0,58860.0,0.01]
[1725287585934,0.339714,58873.0,58860.0,0.01]
[1725287586167,0.339714,58873.0,58863.0,0.01]
[1725287586397,0.1353,58880.0,58860.0,0.01]
[1725287586398,0.169881,58865.0,58860.0,0.01]
[1725287586634,0.169868,58870.0,58860.0,0.01]
[1725287586869,0.29449248,58878.0,58860.0,0.01]
[1725287586870,0.02663074,58871.0,58860.0,0.01]
[1725287587409,0.06326431,58871.0,58855.0,0.04940159]
[1725287587638,0.169903,58857.0,58855.0,0.04940159]
[1725287587906,0.169903,58857.0,58849.0,0.1407]
[1725287587907,0.339796,58859.0,58851.0,0.01]
[1725287588142,0.16991,58855.0,58851.0,0.01]
[1725287588372,0.02663701,58862.0,58852.0,0.01]
[1725287588609,0.169908,58856.0,58852.0,0.01]
[1725287588826,0.169904,58857.0,58852.0,0.01]
[1725287589053,0.02663701,58862.0,58852.0,0.01]
[1725287589297,0.02663701,58862.0,58846.0,0.669934]
[1725287589298,0.169928,58849.0,58846.0,0.01]
[1725287589526,0.169925,58850.0,58846.0,0.01]
[1725287590040,0.339839,58852.0,58846.0,0.01]
[1725287590279,0.1322,58859.0,58842.0,0.01]
[1725287590280,0.339872,58846.0,58842.0,0.01]
[1725287590544,0.1322,58859.0,58838.0,0.04934771]
[1725287590545,0.509865,58839.0,58838.0,0.04934771]
[1725287590801,0.169955,58839.0,58838.0,0.04934771]
[1725287591047,0.339835,58852.0,58835.0,0.01]
[1725287591048,0.169963,58836.0,58835.0,0.01]
[1725287591309,0.339913,58839.0,58834.0,0.01]
[1725287591570,0.339913,58839.0,58827.0,0.35763803]
[1725287591571,0.509961,58828.0,58827.0,0.04963803]
[1725287591796,0.849935,58828.0,58827.0,0.04963803]
[1725287592036,0.849935,58828.0,58815.0,0.01]
[1725287592037,0.34,58824.0,58815.0,0.01]
[1725287592269,0.34,58824.0,58811.0,0.1737]
[1725287592270,0.1764,58837.0,58821.0,0.01]
[1725287592525,0.23979308,58837.0,58819.0,0.01]
[1725287592761,0.23979308,58837.0,58821.0,0.01]
[1725287592762,0.339989,58826.0,58821.0,0.01]
[1725287593001,0.339989,58826.0,58812.0,0.340065]
[1725287593002,0.339932,58836.0,58827.0,0.00946411]
[1725287593244,0.339937,58835.0,58828.0,0.17]
[1725287593497,0.1621,58845.0,58830.0,0.00946411]
[1725287593498,0.02664952,58834.0,58830.0,0.00946411]
[1725287593726,0.02664952,58834.0,58828.0,0.17]
[1725287593727,0.02664952,58834.0,58832.0,0.00946411]
[1725287594216,0.02664952,58834.0,58828.0,0.17]
[1725287594453,0.02664952,58834.0,58829.0,0.00946411]
[1725287594717,0.02664952,58834.0,58833.0,0.00946411]
[1725287594957,0.02664952,58834.0,58833.0,0.66348111]
[1725287595255,0.169983,58830.0,58828.0,0.17]
[1725287595482,0.29449248,58842.0,58823.0,0.1934749]
[1725287595483,0.339971,58829.0,58823.0,0.1934749]
[1725287595722,0.29449248,58842.0,58827.0,0.00946411]
[1725287595723,0.169987,58828.0,58827.0,0.00946411]
[1725287595954,0.29449248,58842.0,58827.0,0.00946411]
[1725287595955,0.169974,58833.0,58827.0,0.17945311]
[1725287596187,0.29449248,58842.0,58825.0,0.00946411]
[1725287596420,0.339945,58833.0,58825.0,0.00946411]
[1725287596653,0.339933,58836.0,58826.0,0.169992]
[1725287596895,0.339964,58830.0,58825.0,0.00946411]
[1725287597131,0.339987,58826.0,58821.0,0.05860461]
[1725287597375,0.1711,58841.0,58823.0,0.00946411]
[1725287597616,0.1711,58841.0,58824.0,0.17946211]
[1725287597617,0.169982,58830.0,58824.0,0.17946211]
[1725287597845,0.169986,58829.0,58824.0,0.00946411]
[1725287598312,0.169987,58828.0,58824.0,0.00946411]
[1725287598557,0.169992,58826.0,58825.0,0.04979644]
[1725287598794,0.170001,58823.0,58822.0,0.04979644]
[1725287599037,0.02664992,58837.0,58821.0,0.00946411]
[1725287599038,0.29449248,58830.0,58821.0,0.04979644]
[1725287599283,0.29449248,58830.0,58820.0,0.04979644]
[1725287599500,0.29449248,58830.0,58819.0,0.00946411]
[1725287599501,0.170002,58823.0,58819.0,0.00946411]
[1725287599730,0.339988,58826.0,58819.0,0.00946411]
[1725287599973,0.29449248,58830.0,58818.0,0.04996358]
[1725287599974,0.510039,58819.0,58818.0,0.04996358]
[1725287600205,0.170016,58818.0,58816.0,0.05942769]
[1725287600434,0.340015,58821.0,58816.0,0.00946411]
[1725287600657,0.170014,58819.0,58816.0,0.00946411]
[1725287600891,0.340015,58821.0,58813.0,0.00946411]
[1725287600892,0.170026,58815.0,58813.0,0.00946411]
[1725287601139,0.340015,58821.0,58809.0,0.5]
[1725287601140,0.340015,58821.0,58812.0,0.00946411]
[1725287601370,0.86939311,58869.0,58812.0,0.00946411]
[1725287601371,0.29449248,58829.0,58812.0,0.00946411]
[1725287601603,0.170023,58816.0,58812.0,0.00946411]
[1725287601854,0.340034,58818.0,58812.0,0.00946411]
[1725287602082,0.29449248,58824.0,58812.0,0.00946411]
[1725287602321,0.170028,58814.0,58812.0,0.00946411]
[1725287602557,0.170028,58814.0,58809.0,0.21947796]
[1725287602558,0.340053,58815.0,58811.0,0.00946411]
[1725287602896,0.170033,58812.0,58811.0,0.00946411]
[1725287603125,0.170039,58810.0,58809.0,0.00946411]
[1725287603377,0.510133,58808.0,58807.0,0.177]
[1725287603606,0.170056,58804.0,58803.0,0.04910097]
[1725287603837,0.170056,58804.0,58800.0,0.168]
[1725287603838,0.340112,58804.0,58800.0,0.17746411]
[1725287604068,0.340112,58804.0,58800.0,0.00946411]
[1725287604069,0.340117,58804.0,58800.0,0.00946411]
[1725287604291,0.340117,58804.0,58795.0,0.340161]
[1725287604292,0.340114,58804.0,58798.0,0.00946411]
[1725287604533,0.340114,58804.0,58795.0,0.17008]
[1725287604534,0.170068,58800.0,58799.0,0.00946411]
[1725287604782,0.43949248,58814.0,58797.0,0.00946411]
[1725287605020,0.43949248,58814.0,58792.0,0.21798743]
[1725287605021,0.29449248,58802.0,58792.0,0.21798743]
[1725287605262,0.170063,58802.0,58797.0,0.17953911]
[1725287605504,0.29449248,58812.0,58792.0,0.21798743]
[1725287605505,0.340089,58808.0,58792.0,0.21798743]
[1725287605693,0.29449248,58806.0,58792.0,0.21798743]
[1725287605962,0.170088,58793.0,58792.0,0.04998743]
[1725287606191,0.510264,58793.0,58792.0,0.04998743]
[1725287606421,0.340193,58790.0,58788.0,0.00946411]
[1725287606668,0.170101,58789.0,58787.0,0.00946411]
[1725287606932,0.340181,58793.0,58785.0,0.1843]
[1725287606933,0.170108,58786.0,58785.0,0.1843]
[1725287607395,0.29449248,58802.0,58784.0,0.00946411]
[1725287607630,0.1708,58796.0,58782.0,0.340239]
[1725287607872,0.1708,58796.0,58784.0,0.170113]
[1725287607873,0.170097,58790.0,58784.0,0.170113]
[1725287608093,0.170098,58790.0,58785.0,0.170109]
[1725287608320,0.170094,58791.0,58782.0,0.00946411]
[1725287608565,0.170094,58791.0,58780.0,0.00946411]
[1725287608566,0.340188,58791.0,58780.0,0.00946411]
[1725287608803,0.340212,58787.0,58779.0,0.1843]
[1725287609033,0.1404,58795.0,58780.0,0.00946411]
[1725287609286,0.340194,58790.0,58780.0,0.00946411]
[1725287609544,0.1404,58795.0,58778.0,0.04913466]
[1725287609545,0.29449248,58786.0,58778.0,0.04913466]
[1725287610018,0.170126,58780.0,58778.0,0.04913466]
[1725287610255,0.340223,58785.0,58772.0,0.145]
[1725287610555,0.29449248,58786.0,58770.0,0.00946411]
[1725287610779,0.170129,58779.0,58770.0,0.00946411]
[1725287611021,0.170125,58781.0,58770.0,0.00946411]
[1725287611259,0.170129,58779.0,58770.0,0.00946411]
[1725287611482,0.170132,58778.0,58770.0,0.00946411]
[1725287611737,0.340205,58788.0,58768.0,0.04958649]
[1725287611738,0.63468548,58791.0,58777.0,0.00946411]
[1725287611969,0.170117,58783.0,58774.0,0.00946411]
[1725287612412,0.170113,58785.0,58777.0,0.00946411]
[1725287612644,0.340218,58786.0,58774.0,0.00946411]
[1725287612874,0.340218,58786.0,58772.0,0.1752]
[1725287612875,0.170123,58781.0,58772.0,0.1752]
[1725287613115,0.29449248,58786.0,58770.0,0.00946411]
[1725287613116,0.340258,58779.0,58770.0,0.00946411]
[1725287613396,0.170131,58779.0,58770.0,0.00946411]
[1725287613628,0.170126,58780.0,58770.0,0.00946411]
[1725287613871,0.002,58798.0,58768.0,0.04958649]
[1725287613872,0.1708,58796.0,58780.0,0.00946411]
[1725287614121,0.01053589,58803.0,58788.0,0.00946411]
[1725287614122,0.514825,58802.0,58788.0,0.00946411]
[1725287614329,0.29449248,58805.0,58788.0,0.00946411]
[1725287614551,0.170054,58805.0,58788.0,0.51977111]
[1725287614780,0.340101,58806.0,58791.0,0.00946411]
[1725287615003,0.170074,58798.0,58788.0,0.00946411]
[1725287615241,0.02666537,58799.0,58788.0,0.00946411]
[1725287615462,0.170089,58793.0,58785.0,0.00946411]
[1725287615732,0.02666537,58799.0,58788.0,0.00946411]
[1725287615979,0.02666537,58799.0,58785.0,0.00946411]
[1725287616233,0.170076,58797.0,58785.0,0.17957411]
[1725287616479,0.170076,58797.0,58789.0,0.00946411]
[1725287616719,0.170076,58797.0,58785.0,0.17011]
[1725287616720,0.340055,58814.0,58801.0,0.00946411]
[1725287616957,0.026667,58816.0,58802.0,0.134]
[1725287617437,0.026667,58816.0,58795.0,0.340159]
[1725287617438,0.170046,58808.0,58799.0,0.00946411]
[1725287617672,0.29449248,58818.0,58796.0,0.134]
[1725287617673,0.29449248,58818.0,58802.0,0.04919242]
[1725287617905,0.340062,58813.0,58801.0,0.00946411]
[1725287618141,0.17004,58810.0,58801.0,0.00946411]
[1725287618386,0.170036,58812.0,58801.0,0.00946411]
[1725287619296,0.34005,58815.0,58801.0,0.00946411]
[1725287619541,0.17003,58813.0,58801.0,0.17952811]
[1725287619765,0.29449248,58818.0,58802.0,0.19446411]
[1725287619766,0.02656164,58810.0,58802.0,0.19446411]
[1725287620014,0.170023,58816.0,58804.0,0.17952011]
[1725287620227,0.340034,58818.0,58804.0,0.17951911]
[1725287620453,0.170023,58816.0,58804.0,0.17951911]
[1725287620714,0.64448748,58825.0,58799.0,0.34014]
[1725287620715,0.29449248,58837.0,58830.0,0.00946411]
[1725287620962,0.01,58852.0,58830.0,0.00946411]
[1725287620963,0.50540786,58846.0,58845.0,0.169937]
[1725287621206,0.01,58868.0,58845.0,0.169937]
[1725287621207,0.1724,58872.0,58853.0,0.00946411]
[1725287621418,0.50540786,58869.0,58858.0,0.00946411]
[1725287621668,0.1724,58872.0,58858.0,0.17936411]
[1725287621887,0.01,58887.0,58870.0,0.00946411]
[1725287622186,0.1724,58888.0,58877.0,0.00946411]
[1725287622434,0.1724,58888.0,58874.0,0.00946411]
[1725287622692,0.169827,58884.0,58874.0,0.00946411]
[1725287622923,0.339634,58887.0,58874.0,0.00946411]
[1725287622924,0.339642,58886.0,58874.0,0.00946411]
[1725287623148,0.1724,58888.0,58874.0,0.00946411]
[1725287623412,0.066592,58887.0,58869.0,0.00946411]
[1725287623626,0.066592,58887.0,58868.0,0.04925626]
[1725287623627,0.01,58883.0,58868.0,0.04925626]
[1725287623864,0.01,58883.0,58863.0,0.00946411]
[1725287623865,0.339687,58878.0,58862.0,0.00946411]
[1725287624115,0.30449248,58887.0,58865.0,0.50540786]
[1725287624116,0.01,58887.0,58865.0,0.50540786]
[1725287624317,0.01,58887.0,58866.0,0.00946411]
[1725287624318,0.16985,58876.0,58866.0,0.00946411]
[1725287624567,0.349642,58886.0,58866.0,0.00946411]
[1725287624568,0.339674,58880.0,58866.0,0.00946411]
[1725287624787,0.339674,58880.0,58863.0,0.29449248]
[1725287624788,0.339652,58884.0,58871.0,0.00946411]
[1725287625021,0.339646,58885.0,58871.0,0.00946411]
[1725287625022,0.16983,58883.0,58871.0,0.00946411]
[1725287625248,0.169823,58885.0,58873.0,0.00946411]
[1725287625481,0.512029,58888.0,58873.0,0.00946411]
[1725287625482,0.339639,58886.0,58873.0,0.00946411]
[1725287625722,0.339653,58884.0,58874.0,0.00946411]
[1725287626097,0.1724,58888.0,58866.0,0.00946411]
[1725287626098,0.0339653,58883.0,58866.0,0.00946411]
[1725287626104,0.0339653,58883.0,58863.0,0.04963656]
[1725287626105,0.339738,58869.0,58863.0,0.04963656]
[1725287626285,0.01,58883.0,58865.0,0.00946411]
[1725287626515,0.339712,58874.0,58865.0,0.00946411]
[1725287626857,0.1724,58888.0,58865.0,0.00946411]
[1725287626858,0.01,58886.0,58865.0,0.00946411]
[1725287627080,0.509557,58875.0,58865.0,0.00946411]